[Event "MČR juniorů a juniorek v rapid šachu 2024"]
[Site "Hotel Fit Fun, Harrachov, Czech Republic"]
[Date "2024.09.21"]
[Round "1.20"]
[White "Vratil Tomas"]
[Black "Pejrimovsky Tadeas Rubel"]
[Result "0-1"]
[TimeControl "20+5"]
[WhiteFideId "23756870"]
[BlackFideId "23709537"]
[WhiteElo "1671"]
[BlackElo "1895"]

1. e4 {[%clk 00:20:07]} {[%emt 00:00:04]} c5 {[%clk 00:20:09]} 2. c3 {[%clk
00:20:08]} {[%emt 00:00:04]} Nf6 {[%clk 00:20:07]} {[%emt 00:00:07]} 3. e5
{[%clk 00:20:03]} {[%emt 00:00:10]} Nd5 {[%clk 00:20:10]} {[%emt 00:00:02]} 4.
d4 {[%clk 00:20:04]} {[%emt 00:00:04]} cxd4 {[%clk 00:20:14]} {[%emt 00:00:01]}
5. cxd4 {[%clk 00:20:07]} {[%emt 00:00:02]} Nc6 {[%clk 00:19:48]} {[%emt
00:00:31]} 6. Nf3 {[%clk 00:19:20]} {[%emt 00:00:52]} d6 {[%clk 00:19:41]}
{[%emt 00:00:12]} 7. Bc4 {[%clk 00:18:34]} {[%emt 00:00:51]} Nb6 {[%clk
00:17:47]} {[%emt 00:02:00]} 8. Bb3 {[%clk 00:16:41]} {[%emt 00:01:57]} Bg4
{[%clk 00:17:02]} {[%emt 00:00:50]} 9. exd6 {[%clk 00:15:13]} {[%emt 00:01:33]}
Qxd6 {[%clk 00:16:32]} {[%emt 00:00:35]} 10. Bxf7+ {[%clk 00:12:56]} {[%emt
00:02:22]} Kxf7 {[%clk 00:16:36]} {[%emt 00:00:02]} 11. Ng5+ {[%clk 00:13:00]}
{[%emt 00:00:01]} Ke8 {[%clk 00:15:38]} {[%emt 00:01:03]} 12. Qxg4 {[%clk
00:12:04]} {[%emt 00:01:00]} Nxd4 {[%clk 00:15:38]} {[%emt 00:00:05]} 13. Na3
{[%clk 00:11:16]} {[%emt 00:00:53]} Qb4+ {[%clk 00:14:19]} {[%emt 00:01:23]} 14.
Kf1 {[%clk 00:10:00]} {[%emt 00:01:21]} e5 {[%clk 00:12:49]} {[%emt 00:01:36]}
15. Nf3 {[%clk 00:08:13]} {[%emt 00:01:52]} Nxf3 {[%clk 00:10:39]} {[%emt
00:02:15]} 16. Qxf3 {[%clk 00:07:33]} {[%emt 00:00:44]} Qd4 {[%clk 00:07:15]}
{[%emt 00:03:30]} 17. Nc2 {[%clk 00:04:53]} {[%emt 00:02:46]} Qc5 {[%clk
00:05:42]} {[%emt 00:01:37]} 18. Ne3 {[%clk 00:04:23]} {[%emt 00:00:35]} Be7
{[%clk 00:03:22]} {[%emt 00:02:25]} 19. g3 {[%clk 00:03:35]} {[%emt 00:00:52]}
Rf8 {[%clk 00:03:17]} {[%emt 00:00:11]} 20. Qe2 {[%clk 00:03:32]} {[%emt
00:00:07]} Qc6 {[%clk 00:02:35]} {[%emt 00:00:48]} 21. Rg1 {[%clk 00:03:14]}
{[%emt 00:00:22]} Rd8 {[%clk 00:02:04]} {[%emt 00:00:37]} 22. Bd2 {[%clk
00:02:52]} {[%emt 00:00:27]} Nd5 {[%clk 00:01:23]} {[%emt 00:00:46]} 23. Rc1
{[%clk 00:02:03]} {[%emt 00:00:54]} Nxe3+ {[%clk 00:01:26]} {[%emt 00:00:02]}
24. Bxe3 {[%clk 00:02:03]} {[%emt 00:00:04]} Qd5 {[%clk 00:00:46]} {[%emt
00:00:45]} 25. Bxa7 {[%clk 00:01:03]} {[%emt 00:01:05]} Bg5 {[%clk 00:00:16]}
{[%emt 00:00:35]} 26. Re1 {[%clk 00:01:04]} {[%emt 00:00:04]} Bf6 {[%clk
00:00:13]} {[%emt 00:00:10]} 27. Qh5+ {[%clk 00:00:21]} {[%emt 00:00:47]} g6
{[%clk 00:00:07]} {[%emt 00:00:11]} 28. Qxh7 {[%clk 00:00:22]} {[%emt
00:00:04]} Qc4+ {[%clk 00:00:11]} 29. Kg2 {[%clk 00:00:16]} {[%emt 00:00:10]}
Qd5+ {[%clk 00:00:15]} {[%emt 00:00:02]} 30. f3 {[%clk 00:00:15]} {[%emt
00:00:06]} Qd2+ {[%clk 00:00:09]} {[%emt 00:00:11]} 31. Bf2 {[%clk 00:00:18]}
{[%emt 00:00:02]} Qg5 {[%clk 00:00:11]} {[%emt 00:00:03]} 32. Qxb7 {[%clk
00:00:16]} {[%emt 00:00:06]} Rd2 {[%clk 00:00:11]} {[%emt 00:00:06]} 33. Qc6+
{[%clk 00:00:18]} {[%emt 00:00:02]} Kf7 {[%clk 00:00:15]} {[%emt 00:00:02]} 34.
Qc4+ {[%clk 00:00:18]} {[%emt 00:00:05]} Kg7 {[%clk 00:00:17]} {[%emt
00:00:03]} 35. Qg4 {[%clk 00:00:19]} {[%emt 00:00:03]} Qh6 {[%clk 00:00:11]}
{[%emt 00:00:12]} 36. Kh1 {[%clk 00:00:09]} {[%emt 00:00:14]} Rxf2 {[%clk
00:00:14]} {[%emt 00:00:02]} 37. Qd7+ {[%clk 00:00:12]} {[%emt 00:00:03]} Rf7
{[%clk 00:00:18]} {[%emt 00:00:01]} 38. Qd3 {[%clk 00:00:14]} {[%emt 00:00:02]}
Qxh2# {[%clk 00:00:22]} {[%emt 00:00:02]} 0-1



[ePGN "0.1;DGT LiveChess/2.2.6"]

[Event "MČR juniorů a juniorek v rapid šachu 2024"]
[Site "Hotel Fit Fun, Harrachov, Czech Republic"]
[Date "2024.09.21"]
[Round "1.21"]
[White "Mikolas Petr"]
[Black "Jun Rostislav"]
[Result "1-0"]
[TimeControl "20+5"]
[WhiteFideId "23713224"]
[BlackFideId "23719524"]
[WhiteElo "1892"]
[BlackElo "1641"]

1. e4 {[%clk 00:20:08]} {[%emt 00:00:03]} c5 {[%clk 00:20:07]} {[%emt
00:00:03]} 2. Nf3 {[%clk 00:20:11]} {[%emt 00:00:02]} Nc6 {[%clk 00:20:11]}
{[%emt 00:00:01]} 3. d4 {[%clk 00:20:14]} {[%emt 00:00:02]} cxd4 {[%clk
00:20:14]} {[%emt 00:00:03]} 4. Nxd4 {[%clk 00:20:17]} {[%emt 00:00:01]} Nf6
{[%clk 00:20:15]} {[%emt 00:00:03]} 5. Nc3 {[%clk 00:20:20]} {[%emt 00:00:02]}
e5 {[%clk 00:20:17]} {[%emt 00:00:03]} 6. Ndb5 {[%clk 00:20:23]} {[%emt
00:00:02]} d6 {[%clk 00:20:16]} {[%emt 00:00:07]} 7. Bg5 {[%clk 00:19:47]}
{[%emt 00:00:41]} a6 {[%clk 00:19:11]} {[%emt 00:01:10]} 8. Na3 {[%clk
00:19:24]} {[%emt 00:00:28]} b5 {[%clk 00:18:53]} {[%emt 00:00:22]} 9. Nd5
{[%clk 00:18:04]} {[%emt 00:01:26]} Be7 {[%clk 00:18:51]} {[%emt 00:00:06]} 10.
Bxf6 {[%clk 00:18:06]} {[%emt 00:00:02]} Bxf6 {[%clk 00:18:55]} {[%emt
00:00:02]} 11. c3 {[%clk 00:18:10]} {[%emt 00:00:01]} O-O {[%clk 00:18:48]}
{[%emt 00:00:12]} 12. Nc2 {[%clk 00:18:13]} {[%emt 00:00:02]} Bb7 {[%clk
00:17:38]} {[%emt 00:01:15]} 13. a4 {[%clk 00:16:53]} {[%emt 00:01:25]} bxa4
{[%clk 00:16:31]} {[%emt 00:01:12]} 14. Rxa4 {[%clk 00:16:55]} {[%emt
00:00:04]} a5 {[%clk 00:15:20]} {[%emt 00:01:15]} 15. Nce3 {[%clk 00:13:47]}
{[%emt 00:03:13]} Bg5 {[%clk 00:14:01]} {[%emt 00:01:23]} 16. Nc4 {[%clk
00:12:00]} {[%emt 00:01:53]} Ba6 {[%clk 00:10:01]} {[%emt 00:04:05]} 17. h4
{[%clk 00:10:52]} {[%emt 00:01:12]} Be7 {[%clk 00:09:00]} {[%emt 00:01:06]} 18.
Nxe7+ {[%clk 00:09:14]} {[%emt 00:01:44]} Nxe7 {[%clk 00:08:37]} {[%emt
00:00:28]} 19. Qxd6 {[%clk 00:09:10]} {[%emt 00:00:09]} Qxd6 {[%clk 00:07:42]}
{[%emt 00:01:00]} 20. Nxd6 {[%emt 00:00:02]} Bxf1 {[%clk 00:07:43]} {[%emt
00:00:03]} 21. Rxf1 {[%clk 00:09:08]} {[%emt 00:00:11]} Rfd8 {[%clk 00:06:21]}
{[%emt 00:01:27]} 22. Nc4 {[%clk 00:08:33]} {[%emt 00:00:40]} f6 {[%clk
00:05:59]} {[%emt 00:00:26]} 23. Rxa5 {[%clk 00:07:43]} {[%emt 00:00:56]} Nc6
{[%clk 00:05:44]} {[%emt 00:00:20]} 24. Rxa8 {[%clk 00:07:45]} {[%emt
00:00:03]} Rxa8 {[%clk 00:05:47]} {[%emt 00:00:02]} 25. Kd2 {[%clk 00:07:48]}
{[%emt 00:00:02]} Rd8+ {[%clk 00:05:21]} {[%emt 00:00:30]} 26. Kc2 {[%clk
00:07:52]} {[%emt 00:00:02]} Rc8 {[%clk 00:05:21]} {[%emt 00:00:05]} 27. b3
{[%clk 00:07:49]} {[%emt 00:00:08]} Ra8 {[%clk 00:05:06]} {[%emt 00:00:20]} 28.
b4 {[%clk 00:07:28]} {[%emt 00:00:26]} Rc8 {[%clk 00:04:33]} {[%emt 00:00:37]}
29. Kb3 {[%clk 00:07:32]} {[%emt 00:00:02]} Rb8 {[%clk 00:04:11]} {[%emt
00:00:26]} 30. Rd1 {[%clk 00:07:27]} {[%emt 00:00:10]} Kf8 {[%clk 00:04:04]}
{[%emt 00:00:12]} 31. Rd7 {[%clk 00:07:25]} {[%emt 00:00:08]} Ne7 {[%clk
00:02:35]} {[%emt 00:01:34]} 32. Nd6 {[%clk 00:06:49]} {[%emt 00:00:41]} Nc6
{[%clk 00:01:34]} {[%emt 00:01:06]} 33. Rf7+ {[%clk 00:06:12]} {[%emt
00:00:42]} Kg8 {[%clk 00:01:35]} {[%emt 00:00:03]} 34. Rc7 {[%clk 00:06:14]}
{[%emt 00:00:04]} Nd8 {[%clk 00:01:24]} {[%emt 00:00:16]} 35. Rc8 {[%clk
00:06:17]} {[%emt 00:00:02]} 1-0



[ePGN "0.1;DGT LiveChess/2.2.6"]

[Event "MČR juniorů a juniorek v rapid šachu 2024"]
[Site "Hotel Fit Fun, Harrachov, Czech Republic"]
[Date "2024.09.21"]
[Round "1.22"]
[White "Slivova Linda"]
[Black "Zadrapova Amalie"]
[Result "0-1"]
[TimeControl "20+5"]
[WhiteFideId "23709294"]
[BlackFideId "23710276"]
[WhiteElo "1630"]
[BlackElo "1891"]

1. e4 {[%clk 00:20:08]} {[%emt 00:00:02]} c5 {[%clk 00:19:34]} {[%emt
00:00:36]} 2. Nc3 {[%clk 00:20:11]} {[%emt 00:00:02]} Nc6 {[%clk 00:19:38]}
{[%emt 00:00:02]} 3. g3 {[%clk 00:20:14]} {[%emt 00:00:02]} g6 {[%clk
00:19:41]} {[%emt 00:00:02]} 4. Bg2 {[%clk 00:20:16]} {[%emt 00:00:02]} Bg7
{[%clk 00:19:45]} {[%emt 00:00:02]} 5. d3 {[%clk 00:20:12]} {[%emt 00:00:08]}
Rb8 {[%clk 00:19:39]} {[%emt 00:00:11]} 6. Be3 {[%clk 00:20:03]} {[%emt
00:00:14]} d6 {[%clk 00:19:41]} {[%emt 00:00:04]} 7. Qd2 {[%clk 00:19:39]}
{[%emt 00:00:28]} b5 {[%clk 00:19:31]} {[%emt 00:00:16]} 8. Nge2 {[%clk
00:19:19]} {[%emt 00:00:25]} b4 {[%clk 00:17:48]} {[%emt 00:01:48]} 9. Nd1
{[%clk 00:19:15]} {[%emt 00:00:09]} Nd4 {[%clk 00:17:27]} {[%emt 00:00:25]} 10.
O-O {[%clk 00:18:44]} {[%emt 00:00:36]} e6 {[%clk 00:17:08]} {[%emt 00:00:25]}
11. f4 {[%clk 00:17:33]} {[%emt 00:01:16]} Ne7 {[%clk 00:16:29]} {[%emt
00:00:44]} 12. Nxd4 {[%clk 00:13:44]} {[%emt 00:03:53]} cxd4 {[%clk 00:16:10]}
{[%emt 00:00:25]} 13. Bf2 {[%clk 00:13:47]} O-O {[%clk 00:14:00]} {[%emt
00:02:15]} 14. Re1 {[%clk 00:12:45]} {[%emt 00:01:08]} Qc7 {[%clk 00:11:46]}
{[%emt 00:02:19]} 15. g4 {[%clk 00:11:18]} {[%emt 00:01:32]} f5 {[%clk
00:10:28]} {[%emt 00:01:24]} 16. exf5 {[%clk 00:09:21]} {[%emt 00:02:01]} gxf5
{[%clk 00:09:24]} {[%emt 00:01:08]} 17. g5 {[%clk 00:08:01]} {[%emt 00:01:26]}
Ng6 {[%clk 00:07:38]} {[%emt 00:01:51]} 18. Bg3 {[%clk 00:07:45]} {[%emt
00:00:20]} e5 {[%clk 00:07:06]} {[%emt 00:00:38]} 19. Re2 {[%clk 00:05:09]}
{[%emt 00:02:41]} Bb7 {[%clk 00:04:55]} {[%emt 00:02:15]} 20. Bxb7 {[%clk
00:03:25]} {[%emt 00:01:48]} Qxb7 {[%clk 00:04:19]} {[%emt 00:00:41]} 21. Nf2
{[%clk 00:01:18]} {[%emt 00:02:12]} exf4 {[%clk 00:04:04]} {[%emt 00:00:21]} 22.
Bxf4 {[%clk 00:01:15]} {[%emt 00:00:08]} Nh4 {[%clk 00:03:51]} {[%emt
00:00:18]} 0-1



[ePGN "0.1;DGT LiveChess/2.2.6"]

[Event "MČR juniorů a juniorek v rapid šachu 2024"]
[Site "Hotel Fit Fun, Harrachov, Czech Republic"]
[Date "2024.09.21"]
[Round "1.23"]
[White "Markina Sofiia"]
[Black "Plzak David"]
[Result "1-0"]
[TimeControl "20+5"]
[WhiteFideId "23744014"]
[BlackFideId "23776234"]
[WhiteElo "1885"]
[BlackElo "1625"]

1. e4 {[%clk 00:20:07]} {[%emt 00:00:03]} c5 {[%clk 00:20:09]} {[%emt
00:00:01]} 2. Nc3 {[%clk 00:20:10]} {[%emt 00:00:03]} e6 {[%clk 00:20:09]}
{[%emt 00:00:05]} 3. Nf3 {[%clk 00:20:02]} {[%emt 00:00:13]} Nc6 {[%clk
00:20:11]} {[%emt 00:00:03]} 4. Bb5 {[%clk 00:20:04]} {[%emt 00:00:02]} Nd4
{[%clk 00:19:18]} {[%emt 00:00:58]} 5. Ba4 {[%clk 00:19:17]} {[%emt 00:00:52]}
a6 {[%clk 00:18:26]} {[%emt 00:00:57]} 6. Bb3 {[%clk 00:19:14]} {[%emt
00:00:12]} Ne7 {[%clk 00:17:43]} {[%emt 00:00:44]} 7. Ne2 {[%clk 00:18:40]}
{[%emt 00:00:39]} Nxb3 {[%clk 00:17:22]} {[%emt 00:00:26]} 8. axb3 {[%clk
00:18:42]} {[%emt 00:00:03]} Nc6 {[%clk 00:17:17]} {[%emt 00:00:10]} 9. d4
{[%clk 00:18:28]} {[%emt 00:00:20]} cxd4 {[%clk 00:17:18]} {[%emt 00:00:04]} 10.
Nexd4 {[%clk 00:18:31]} {[%emt 00:00:02]} Bc5 {[%clk 00:16:48]} {[%emt
00:00:34]} 11. Be3 {[%clk 00:18:13]} {[%emt 00:00:23]} Qb6 {[%clk 00:15:14]}
{[%emt 00:01:39]} 12. c3 {[%emt 00:00:51]} O-O {[%clk 00:14:48]} {[%emt
00:00:29]} 13. b4 {[%clk 00:17:24]} {[%emt 00:00:09]} Bxd4 {[%clk 00:14:47]}
{[%emt 00:00:07]} 14. Nxd4 {[%clk 00:17:28]} {[%emt 00:00:01]} Qc7 {[%clk
00:14:25]} {[%emt 00:00:27]} 15. O-O {[%clk 00:17:17]} {[%emt 00:00:16]} d6
{[%clk 00:13:45]} {[%emt 00:00:45]} 16. Nb5 {[%clk 00:16:57]} {[%emt 00:00:25]}
Qe7 {[%clk 00:12:56]} {[%emt 00:00:54]} 17. Nxd6 {[%clk 00:16:58]} {[%emt
00:00:04]} Rd8 {[%clk 00:12:34]} {[%emt 00:00:27]} 18. Bc5 {[%clk 00:17:01]}
{[%emt 00:00:01]} Qg5 {[%clk 00:11:46]} {[%emt 00:00:53]} 19. f4 {[%clk
00:16:02]} {[%emt 00:01:05]} Qg6 {[%clk 00:11:27]} {[%emt 00:00:23]} 20. e5
{[%clk 00:15:35]} {[%emt 00:00:33]} Rb8 {[%clk 00:11:01]} {[%emt 00:00:31]} 21.
Bb6 {[%clk 00:14:53]} {[%emt 00:00:47]} Rf8 {[%clk 00:10:28]} {[%emt 00:00:38]}
22. Rf3 {[%clk 00:14:05]} {[%emt 00:00:53]} Ne7 {[%clk 00:10:02]} {[%emt
00:00:31]} 23. Rg3 {[%clk 00:13:27]} {[%emt 00:00:43]} Qh6 {[%clk 00:09:54]}
{[%emt 00:00:13]} 24. Qg4 {[%clk 00:09:58]} {[%emt 00:03:34]} Nd5 {[%clk
00:08:19]} {[%emt 00:01:40]} 25. Be3 {[%clk 00:08:58]} {[%emt 00:01:04]} f5
{[%clk 00:06:24]} {[%emt 00:02:01]} 26. Qf3 {[%clk 00:08:19]} {[%emt 00:00:43]}
Bd7 {[%clk 00:06:01]} {[%emt 00:00:29]} 27. c4 {[%clk 00:05:50]} {[%emt
00:02:35]} Nxb4 {[%clk 00:05:22]} {[%emt 00:00:42]} 28. Bc5 {[%clk 00:05:42]}
{[%emt 00:00:13]} Rfd8 {[%clk 00:04:44]} {[%emt 00:00:43]} 29. Bxb4 {[%clk
00:05:42]} {[%emt 00:00:05]} Bc6 {[%clk 00:04:47]} {[%emt 00:00:01]} 30. Qe3
{[%clk 00:05:34]} {[%emt 00:00:13]} 1-0



[ePGN "0.1;DGT LiveChess/2.2.6"]

[Event "MČR juniorů a juniorek v rapid šachu 2024"]
[Site "Hotel Fit Fun, Harrachov, Czech Republic"]
[Date "2024.09.21"]
[Round "1.24"]
[White "Dufkova Tereza"]
[Black "Koranda Kosma"]
[Result "0-1"]
[TimeControl "20+5"]
[WhiteFideId "23744383"]
[BlackFideId "23772948"]
[WhiteElo "1601"]
[BlackElo "1884"]

1. e4 {[%clk 00:20:08]} {[%emt 00:00:01]} e5 {[%clk 00:20:09]} {[%emt
00:00:02]} 2. Nf3 {[%clk 00:20:09]} {[%emt 00:00:03]} Nc6 {[%clk 00:20:12]}
{[%emt 00:00:02]} 3. d4 {[%clk 00:20:13]} {[%emt 00:00:01]} exd4 {[%clk
00:20:13]} {[%emt 00:00:04]} 4. Nxd4 {[%clk 00:20:16]} {[%emt 00:00:02]} Nf6
{[%clk 00:20:16]} {[%emt 00:00:02]} 5. Nc3 {[%clk 00:19:06]} {[%emt 00:01:15]}
Bb4 {[%clk 00:19:59]} {[%emt 00:00:22]} 6. Bg5 {[%clk 00:18:24]} {[%emt
00:00:47]} h6 {[%clk 00:19:19]} {[%emt 00:00:46]} 7. Nxc6 {[%clk 00:16:26]}
{[%emt 00:02:03]} bxc6 {[%clk 00:19:12]} {[%emt 00:00:12]} 8. Bxf6 {[%clk
00:14:28]} {[%emt 00:02:03]} Qxf6 {[%clk 00:19:10]} {[%emt 00:00:06]} 9. Qd3
{[%clk 00:12:30]} {[%emt 00:02:03]} Ba6 {[%clk 00:18:14]} {[%emt 00:01:01]} 10.
Qg3 {[%clk 00:11:40]} {[%emt 00:00:54]} Bxf1 {[%clk 00:17:19]} {[%emt
00:01:01]} 11. Rxf1 {[%clk 00:11:42]} {[%emt 00:00:03]} O-O {[%clk 00:17:00]}
{[%emt 00:00:23]} 12. O-O-O {[%clk 00:10:47]} {[%emt 00:01:01]} d6 {[%clk
00:16:16]} {[%emt 00:00:49]} 13. Rfe1 {[%clk 00:10:50]} {[%emt 00:00:02]} Rab8
{[%clk 00:13:59]} {[%emt 00:02:23]} 14. Rd3 {[%clk 00:09:47]} {[%emt 00:01:07]}
Rfe8 {[%clk 00:13:10]} {[%emt 00:00:54]} 15. Ree3 {[%clk 00:08:36]} {[%emt
00:01:16]} Qe6 {[%clk 00:11:14]} {[%emt 00:02:00]} 16. a3 {[%clk 00:07:00]}
{[%emt 00:01:42]} Bxc3 {[%clk 00:09:36]} {[%emt 00:01:43]} 17. Rxc3 {[%clk
00:07:02]} {[%emt 00:00:03]} Rb6 {[%clk 00:08:12]} {[%emt 00:01:30]} 18. Qh4
{[%clk 00:05:50]} {[%emt 00:01:16]} Reb8 {[%clk 00:07:14]} {[%emt 00:01:03]} 19.
b3 {[%clk 00:05:52]} {[%emt 00:00:03]} a5 {[%clk 00:06:59]} {[%emt 00:00:21]}
20. Rg3 {[%clk 00:05:54]} {[%emt 00:00:03]} a4 {[%clk 00:05:44]} {[%emt
00:01:19]} 21. Kb2 {[%clk 00:04:32]} {[%emt 00:01:27]} Qe5 {[%clk 00:04:59]}
{[%emt 00:00:49]} 22. Ka2 {[%clk 00:04:05]} {[%emt 00:00:33]} Qe6 {[%clk
00:04:31]} {[%emt 00:00:33]} 23. f4 {[%clk 00:03:33]} {[%emt 00:00:37]} axb3+
{[%clk 00:04:10]} {[%emt 00:00:26]} 24. cxb3 {[%clk 00:03:28]} {[%emt
00:00:11]} Qxe4 {[%clk 00:03:12]} {[%emt 00:01:01]} 25. Qxh6 {[%clk 00:03:30]}
{[%emt 00:00:04]} Qe2+ {[%clk 00:02:42]} {[%emt 00:00:34]} 26. Kb1 {[%clk
00:03:20]} {[%emt 00:00:13]} Rxb3+ {[%clk 00:02:15]} {[%emt 00:00:36]} 27. Rxb3
{[%clk 00:02:05]} {[%emt 00:01:19]} Rxb3+ {[%clk 00:02:14]} {[%emt 00:00:05]}
28. Kc1 {[%clk 00:01:42]} {[%emt 00:00:29]} Rc3+ {[%clk 00:01:44]} {[%emt
00:00:34]} 29. Kb1 {[%clk 00:01:06]} {[%emt 00:00:42]} Qc2+ {[%clk 00:01:45]}
{[%emt 00:00:04]} 30. Ka1 {[%clk 00:01:08]} {[%emt 00:00:03]} Qc1+ {[%clk
00:01:03]} {[%emt 00:00:47]} 31. Ka2 {[%clk 00:01:02]} {[%emt 00:00:11]} Rc2+
{[%clk 00:01:02]} {[%emt 00:00:06]} 32. Kb3 {[%clk 00:01:01]} {[%emt 00:00:05]}
Qb2+ {[%clk 00:01:02]} {[%emt 00:00:05]} 33. Ka4 {[%clk 00:00:57]} {[%emt
00:00:09]} Qb5# {[%emt 00:00:06]} 0-1



[ePGN "0.1;DGT LiveChess/2.2.6"]

[Event "MČR juniorů a juniorek v rapid šachu 2024"]
[Site "Hotel Fit Fun, Harrachov, Czech Republic"]
[Date "2024.09.21"]
[Round "1.25"]
[White "Pejrimovska Viola Ruby"]
[Black "Vondra Filip"]
[Result "1-0"]
[TimeControl "20+5"]
[WhiteFideId "23709529"]
[BlackFideId "23725176"]
[WhiteElo "1876"]
[BlackElo "1598"]

1. e4 {[%clk 00:20:07]} {[%emt 00:00:02]} c6 {[%clk 00:17:46]} {[%emt
00:02:25]} 2. d4 {[%clk 00:20:08]} {[%emt 00:00:04]} d5 {[%clk 00:17:50]} 3. e5
{[%clk 00:20:10]} {[%emt 00:00:03]} Bf5 {[%clk 00:17:53]} 4. h4 {[%clk
00:20:12]} {[%emt 00:00:04]} h5 {[%clk 00:17:56]} {[%emt 00:00:02]} 5. Ne2
{[%clk 00:20:14]} {[%emt 00:00:02]} e6 {[%clk 00:17:52]} {[%emt 00:00:10]} 6.
Ng3 {[%clk 00:20:17]} {[%emt 00:00:02]} Bh7 {[%clk 00:17:55]} {[%emt 00:00:02]}
7. c4 {[%clk 00:20:01]} {[%emt 00:00:21]} c5 {[%clk 00:16:59]} {[%emt
00:01:02]} 8. Nc3 {[%clk 00:18:27]} {[%emt 00:01:38]} Bg6 {[%clk 00:15:26]}
{[%emt 00:01:38]} 9. cxd5 {[%clk 00:18:15]} {[%emt 00:00:17]} exd5 {[%clk
00:15:22]} {[%emt 00:00:09]} 10. Bb5+ {[%clk 00:16:35]} {[%emt 00:01:45]} Nc6
{[%clk 00:15:05]} {[%emt 00:00:22]} 11. Bg5 {[%clk 00:16:15]} {[%emt 00:00:25]}
Be7 {[%clk 00:11:25]} {[%emt 00:03:45]} 12. Qa4 {[%clk 00:15:27]} {[%emt
00:00:53]} Rc8 {[%clk 00:08:45]} {[%emt 00:02:44]} 13. f4 {[%clk 00:12:34]}
{[%emt 00:02:59]} a6 {[%clk 00:07:09]} {[%emt 00:01:42]} 14. Bxc6+ {[%clk
00:11:50]} {[%emt 00:00:48]} Rxc6 {[%clk 00:07:12]} {[%emt 00:00:02]} 15. dxc5
{[%clk 00:07:04]} {[%emt 00:04:50]} b5 {[%clk 00:04:12]} {[%emt 00:03:06]} 16.
cxb6 {[%clk 00:06:44]} {[%emt 00:00:25]} Qxb6 {[%clk 00:01:15]} {[%emt
00:03:02]} 17. Nxd5 {[%clk 00:06:46]} {[%emt 00:00:03]} Bb4+ {[%clk 00:00:21]}
{[%emt 00:00:59]} 18. Nxb4 {[%clk 00:01:36]} {[%emt 00:05:14]} Qe3+ {[%clk
00:00:16]} {[%emt 00:00:11]} 19. Ne2 {[%clk 00:01:37]} {[%emt 00:00:03]} 1-0



[ePGN "0.1;DGT LiveChess/2.2.6"]